[Event "Titled Tuesday Blitz June 13 Early 2023"]
[White "Horvath, Dominik"]
[Black "ATM622"]
[WhiteFideId "1642561"]
[WhiteElo "2407"]
[BlackElo "2571"]
[Result "0-1"]
[Round "4"]
[TimeControl "180+2"]
[Date "2023.06.13"]
[WhiteClock "0:00:13"]
[BlackClock "0:00:06"]
[Board "48"]

1. e4 {[%clk 0:02:59]}  c6 {[%clk 0:02:59]} 2. d4 {[%clk 0:02:55]}  d5 {[%clk 0:02:57]} 3. e5 {[%clk 0:02:55]}  c5 {[%clk 0:02:57]} 4. c3 {[%clk 0:02:49]}  e6 {[%clk 0:02:56]} 5. Nf3 {[%clk 0:02:49]}  Nc6 {[%clk 0:02:55]} 6. Be2 {[%clk 0:02:48]}  cxd4 {[%clk 0:02:55]} 7. cxd4 {[%clk 0:02:48]}  Bb4+ {[%clk 0:02:53]} 8. Nc3 {[%clk 0:02:47]}  Nge7 {[%clk 0:02:52]} 9. O-O {[%clk 0:02:47]}  O-O {[%clk 0:02:48]} 10. Bd3 {[%clk 0:02:46]}  h6 {[%clk 0:02:44]} 11. Ne2 {[%clk 0:02:46]}  Ba5 {[%clk 0:02:38]} 12. Ng3 {[%clk 0:02:46]}  Bb6 {[%clk 0:02:36]} 13. Nh5 {[%clk 0:02:03]}  Nf5 {[%clk 0:02:33]} 14. Bxf5 {[%clk 0:02:01]}  exf5 {[%clk 0:02:34]} 15. Bxh6 {[%clk 0:01:14]}  gxh6 {[%clk 0:02:31]} 16. Qd2 {[%clk 0:01:14]}  Kh7 {[%clk 0:01:56]} 17. Nf6+ {[%clk 0:01:14]}  Kg7 {[%clk 0:01:56]} 18. Rac1 {[%clk 0:01:14]}  Qe7 {[%clk 0:01:43]} 19. Nh5+ {[%clk 0:01:14]}  Kh7 {[%clk 0:01:41]} 20. Nf6+ {[%clk 0:01:14]}  Kg7 {[%clk 0:01:41]} 21. Nxd5 {[%clk 0:01:10]}  Qd8 {[%clk 0:01:40]} 22. Nf6 {[%clk 0:01:03]}  Nxd4 {[%clk 0:01:39]} 23. Nh5+ {[%clk 0:01:02]}  Kh7 {[%clk 0:01:40]} 24. Nf6+ {[%clk 0:01:01]}  Kg7 {[%clk 0:01:40]} 25. Nxd4 {[%clk 0:00:42]}  Qxd4 {[%clk 0:01:39]} 26. Qe2 {[%clk 0:00:38]}  Be6 {[%clk 0:01:24]} 27. Rc3 {[%clk 0:00:38]}  Rh8 {[%clk 0:01:18]} 28. Rd1 {[%clk 0:00:35]}  Qb4 {[%clk 0:01:13]} 29. Rg3+ {[%clk 0:00:34]}  Kf8 {[%clk 0:01:13]} 30. a3 {[%clk 0:00:22]}  Qc4 {[%clk 0:01:02]} 31. Qd2 {[%clk 0:00:22]}  Qc5 {[%clk 0:00:58]} 32. h3 {[%clk 0:00:20]}  Qxe5 {[%clk 0:00:49]} 33. Nh5 {[%clk 0:00:06]}  f4 {[%clk 0:00:29]} 34. Nxf4 {[%clk 0:00:05]}  Rg8 {[%clk 0:00:18]} 35. Rf3 {[%clk 0:00:05]}  Kg7 {[%clk 0:00:13]} 36. Re1 {[%clk 0:00:04]}  Qd4 {[%clk 0:00:11]} 37. Qc2 {[%clk 0:00:05]}  Rac8 {[%clk 0:00:10]} 38. Nh5+ {[%clk 0:00:05]}  Kh8 {[%clk 0:00:10]} 39. Qb1 {[%clk 0:00:04]}  Rg5 {[%clk 0:00:08]} 40. Nf6 {[%clk 0:00:04]}  Bd5 {[%clk 0:00:07]} 41. Nxd5 {[%clk 0:00:04]}  Qxd5 {[%clk 0:00:08]} 42. Kh1 {[%clk 0:00:04]}  Rcg8 {[%clk 0:00:07]} 43. Re4 {[%clk 0:00:02]}  Qd6 {[%clk 0:00:03]} 44. Qc1 {[%clk 0:00:02]}  Qg6 {[%clk 0:00:04]} 45. g3 {[%clk 0:00:02]}  Qxe4 {[%clk 0:00:03]} 46. Qc3+ {[%clk 0:00:03]}  Bd4 {[%clk 0:00:03]} 47. Qd3 {[%clk 0:00:02]}  Qxd3 {[%clk 0:00:03]} 48. Rxd3 {[%clk 0:00:03]}  Bb6 {[%clk 0:00:03]} 49. Rd7 {[%clk 0:00:04]}  Rf5 {[%clk 0:00:04]} 50. Kg2 {[%clk 0:00:04]}  Rxf2+ {[%clk 0:00:04]} 51. Kg1 {[%clk 0:00:05]}  Rxg3+ {[%clk 0:00:04]} 52. Kh1 {[%clk 0:00:05]}  Rxh3+ {[%clk 0:00:04]} 53. Kg1 {[%clk 0:00:06]}  Rg3+ {[%clk 0:00:04]} 54. Kh1 {[%clk 0:00:07]}  Re3 {[%clk 0:00:04]} 55. Rd1 {[%clk 0:00:06]}  Ree2 {[%clk 0:00:04]} 56. Kg1 {[%clk 0:00:05]}  Rd2 {[%clk 0:00:03]} 57. Rc1 {[%clk 0:00:05]}  Rc2 {[%clk 0:00:03]} 58. Re1 {[%clk 0:00:05]}  Rfe2+ {[%clk 0:00:04]} 59. Kf1 {[%clk 0:00:06]}  Rxe1+ {[%clk 0:00:04]} 60. Kxe1 {[%clk 0:00:07]}  h5 {[%clk 0:00:05]} 61. a4 {[%clk 0:00:07]}  Rxb2 {[%clk 0:00:05]} 62. a5 {[%clk 0:00:08]}  Bxa5+ {[%clk 0:00:05]} 63. Kf1 {[%clk 0:00:09]}  h4 {[%clk 0:00:05]} 64. Kg1 {[%clk 0:00:10]}  h3 {[%clk 0:00:05]} 65. Kh1 {[%clk 0:00:11]}  Bd8 {[%clk 0:00:04]} 66. Kg1 {[%clk 0:00:11]}  a5 {[%clk 0:00:04]} 67. Kh1 {[%clk 0:00:12]}  a4 {[%clk 0:00:05]} 68. Kg1 {[%clk 0:00:13]}  a3 {[%clk 0:00:05]} 69. Kh1 {[%clk 0:00:13]}  a2 {[%clk 0:00:06]} 0-1


[Site "https://www.chess.com"]

[Event "Titled Tuesday Blitz June 13 Early 2023"]
[White "Camilla_Lee"]
[Black "Stribuk, Artiom"]
[BlackFideId "13515659"]
[WhiteElo "2567"]
[BlackElo "2303"]
[Result "1-0"]
[Round "4"]
[TimeControl "180+2"]
[Date "2023.06.13"]
[WhiteClock "0:00:18"]
[BlackClock "0:00:00"]
[Board "49"]

1. e4 {[%clk 0:02:57]}  c5 {[%clk 0:02:43]} 2. Nf3 {[%clk 0:02:57]}  d6 {[%clk 0:02:43]} 3. d4 {[%clk 0:02:57]}  cxd4 {[%clk 0:02:44]} 4. Nxd4 {[%clk 0:02:57]}  Nf6 {[%clk 0:02:44]} 5. Nc3 {[%clk 0:02:57]}  Nc6 {[%clk 0:02:45]} 6. Bc4 {[%clk 0:02:56]}  Qb6 {[%clk 0:02:45]} 7. Nb3 {[%clk 0:02:55]}  e6 {[%clk 0:02:44]} 8. Be3 {[%clk 0:02:55]}  Qc7 {[%clk 0:02:44]} 9. Be2 {[%clk 0:02:44]}  Be7 {[%clk 0:02:35]} 10. f4 {[%clk 0:02:43]}  a6 {[%clk 0:02:27]} 11. a4 {[%clk 0:02:41]}  b6 {[%clk 0:02:20]} 12. Qd2 {[%clk 0:02:27]}  Bb7 {[%clk 0:02:16]} 13. Bf3 {[%clk 0:02:27]}  O-O {[%clk 0:01:52]} 14. Qf2 {[%clk 0:02:24]}  b5 {[%clk 0:01:25]} 15. Bb6 {[%clk 0:02:10]}  Qd7 {[%clk 0:01:20]} 16. axb5 {[%clk 0:02:08]}  axb5 {[%clk 0:01:20]} 17. Nxb5 {[%clk 0:02:03]}  Rxa1+ {[%clk 0:01:04]} 18. Nxa1 {[%clk 0:02:03]}  Nb4 {[%clk 0:01:05]} 19. Nc3 {[%clk 0:01:59]}  d5 {[%clk 0:00:58]} 20. exd5 {[%clk 0:01:45]}  Nfxd5 {[%clk 0:00:56]} 21. Nxd5 {[%clk 0:01:36]}  Nxd5 {[%clk 0:00:47]} 22. Bd4 {[%clk 0:01:31]}  Qc7 {[%clk 0:00:30]} 23. O-O {[%clk 0:01:23]}  Qxf4 {[%clk 0:00:28]} 24. Nb3 {[%clk 0:01:16]}  Ba6 {[%clk 0:00:23]} 25. Ra1 {[%clk 0:01:13]}  Bc4 {[%clk 0:00:21]} 26. Nd2 {[%clk 0:01:13]}  Bf6 {[%clk 0:00:06]} 27. Bxf6 {[%clk 0:00:59]}  Nxf6 {[%clk 0:00:07]} 28. b3 {[%clk 0:00:59]}  Bd5 {[%clk 0:00:07]} 29. Bxd5 {[%clk 0:00:50]}  Qe5 {[%clk 0:00:07]} 30. Re1 {[%clk 0:00:41]}  Qxd5 {[%clk 0:00:07]} 31. Nf3 {[%clk 0:00:41]}  Rc8 {[%clk 0:00:07]} 32. c4 {[%clk 0:00:38]}  Qd3 {[%clk 0:00:07]} 33. Qe3 {[%clk 0:00:35]}  Qc2 {[%clk 0:00:07]} 34. Nd4 {[%clk 0:00:32]}  Qb2 {[%clk 0:00:07]} 35. Re2 {[%clk 0:00:28]}  Qa1+ {[%clk 0:00:07]} 36. Re1 {[%clk 0:00:28]}  Qb2 {[%clk 0:00:07]} 37. Nb5 {[%clk 0:00:24]}  h6 {[%clk 0:00:06]} 38. Qc3 {[%clk 0:00:23]}  Qxc3 {[%clk 0:00:02]} 39. Nxc3 {[%clk 0:00:24]}  Nd7 {[%clk 0:00:02]} 40. Ne4 {[%clk 0:00:23]}  Kf8 {[%clk 0:00:02]} 41. Ra1 {[%clk 0:00:21]}  Ke7 {[%clk 0:00:02]} 42. Ra7 {[%clk 0:00:21]}  Kd8 {[%clk 0:00:01]} 43. Nc3 {[%clk 0:00:20]}  Rb8 {[%clk 0:00:01]} 44. Nb5 {[%clk 0:00:21]}  f6 {[%clk 0:00:01]} 45. Kf2 {[%clk 0:00:20]}  g5 {[%clk 0:00:02]} 46. Ke3 {[%clk 0:00:20]}  Nc5 {[%clk 0:00:02]} 47. b4 {[%clk 0:00:19]}  Nd7 {[%clk 0:00:03]} 48. Kd4 {[%clk 0:00:18]}  h5 {[%clk 0:00:04]} 49. Kc3 {[%clk 0:00:19]}  h4 {[%clk 0:00:04]} 50. Nd6 {[%clk 0:00:19]}  g4 {[%clk 0:00:02]} 51. c5 {[%clk 0:00:19]}  Ne5 {[%clk 0:00:02]} 52. b5 {[%clk 0:00:18]}  h3 {[%clk 0:00:02]} 53. gxh3 {[%clk 0:00:17]}  gxh3 {[%clk 0:00:00]} 54. c6 {[%clk 0:00:18]} 1-0


[Site "https://www.chess.com"]

[Event "Titled Tuesday Blitz June 13 Early 2023"]
[White "Shukhman, Anna"]
[Black "Rahman, Masruri"]
[WhiteFideId "54180058"]
[BlackFideId "7101163"]
[WhiteElo "2235"]
[BlackElo "2256"]
[Result "0-1"]
[Round "4"]
[TimeControl "180+2"]
[Date "2023.06.13"]
[WhiteClock "0:00:47"]
[BlackClock "0:01:40"]
[Board "50"]

1. e4 {[%clk 0:03:00]}  e6 {[%clk 0:02:59]} 2. d4 {[%clk 0:03:00]}  d5 {[%clk 0:03:00]} 3. Nc3 {[%clk 0:03:00]}  Bb4 {[%clk 0:03:00]} 4. e5 {[%clk 0:03:00]}  c5 {[%clk 0:03:01]} 5. a3 {[%clk 0:03:00]}  Bxc3+ {[%clk 0:03:01]} 6. bxc3 {[%clk 0:03:01]}  Qc7 {[%clk 0:03:02]} 7. Qg4 {[%clk 0:03:00]}  f5 {[%clk 0:03:02]} 8. Qh5+ {[%clk 0:02:49]}  g6 {[%clk 0:03:02]} 9. Qd1 {[%clk 0:02:47]}  b6 {[%clk 0:02:53]} 10. Nf3 {[%clk 0:02:46]}  h6 {[%clk 0:02:52]} 11. Be2 {[%clk 0:02:28]}  Ba6 {[%clk 0:02:50]} 12. O-O {[%clk 0:02:27]}  Ne7 {[%clk 0:02:47]} 13. Bxa6 {[%clk 0:02:15]}  Nxa6 {[%clk 0:02:48]} 14. a4 {[%clk 0:02:08]}  Nb8 {[%clk 0:02:46]} 15. a5 {[%clk 0:02:07]}  bxa5 {[%clk 0:02:45]} 16. dxc5 {[%clk 0:01:53]}  Kf7 {[%clk 0:02:45]} 17. Nd4 {[%clk 0:01:52]}  a6 {[%clk 0:02:31]} 18. Nb3 {[%clk 0:01:20]}  Nbc6 {[%clk 0:02:29]} 19. f4 {[%clk 0:01:18]}  Rab8 {[%clk 0:02:23]} 20. Qd3 {[%clk 0:01:03]}  Rb5 {[%clk 0:02:20]} 21. c4 {[%clk 0:01:02]}  dxc4 {[%clk 0:02:03]} 22. Qxc4 {[%clk 0:01:03]}  Rd8 {[%clk 0:02:01]} 23. Bd2 {[%clk 0:01:00]}  Rxb3 {[%clk 0:01:46]} 24. cxb3 {[%clk 0:01:00]}  Rxd2 {[%clk 0:01:47]} 25. Rfd1 {[%clk 0:01:00]}  Qd7 {[%clk 0:01:40]} 26. Rxd2 {[%clk 0:00:50]}  Qxd2 {[%clk 0:01:41]} 27. Qxa6 {[%clk 0:00:47]}  Qd4+ {[%clk 0:01:40]} 0-1


[Site "https://www.chess.com"]

[Event "Titled Tuesday Blitz June 13 Early 2023"]
[White "Perez Ponsa, Federico"]
[Black "Budrewicz, Krzysztof"]
[WhiteFideId "117927"]
[BlackFideId "1127950"]
[WhiteElo "2590"]
[BlackElo "2230"]
[Result "1-0"]
[Round "4"]
[TimeControl "180+2"]
[Date "2023.06.13"]
[WhiteClock "0:00:55"]
[BlackClock "0:00:38"]
[Board "51"]

1. e4 {[%clk 0:02:53]}  g6 {[%clk 0:02:58]} 2. d4 {[%clk 0:02:52]}  Bg7 {[%clk 0:02:59]} 3. Nf3 {[%clk 0:02:52]}  d6 {[%clk 0:02:59]} 4. Bc4 {[%clk 0:02:52]}  a6 {[%clk 0:02:58]} 5. O-O {[%clk 0:02:52]}  b5 {[%clk 0:02:58]} 6. Bb3 {[%clk 0:02:52]}  e6 {[%clk 0:02:57]} 7. c3 {[%clk 0:02:51]}  Bb7 {[%clk 0:02:57]} 8. Re1 {[%clk 0:02:52]}  Nd7 {[%clk 0:02:57]} 9. Nbd2 {[%clk 0:02:52]}  c5 {[%clk 0:02:57]} 10. Nf1 {[%clk 0:02:53]}  Ne7 {[%clk 0:02:56]} 11. Ng3 {[%clk 0:02:53]}  h6 {[%clk 0:02:56]} 12. h3 {[%clk 0:02:53]}  Qc7 {[%clk 0:02:55]} 13. Be3 {[%clk 0:02:52]}  Rc8 {[%clk 0:02:53]} 14. Qd2 {[%clk 0:02:52]}  Nb6 {[%clk 0:02:43]} 15. Rad1 {[%clk 0:02:51]}  cxd4 {[%clk 0:02:35]} 16. Bxd4 {[%clk 0:02:52]}  O-O {[%clk 0:02:21]} 17. Bxg7 {[%clk 0:02:50]}  Kxg7 {[%clk 0:02:21]} 18. Qxd6 {[%clk 0:02:51]}  Nc4 {[%clk 0:02:21]} 19. Bxc4 {[%clk 0:02:46]}  bxc4 {[%clk 0:02:08]} 20. Qd4+ {[%clk 0:02:34]}  f6 {[%clk 0:02:06]} 21. Qd7 {[%clk 0:02:27]}  Kf7 {[%clk 0:01:57]} 22. Rd6 {[%clk 0:02:23]}  Qxd7 {[%clk 0:01:55]} 23. Rxd7 {[%clk 0:02:24]}  Bc6 {[%clk 0:01:55]} 24. Ra7 {[%clk 0:02:22]}  Ra8 {[%clk 0:01:55]} 25. Rxa8 {[%clk 0:02:21]}  Rxa8 {[%clk 0:01:54]} 26. Nd4 {[%clk 0:02:22]}  Bd7 {[%clk 0:01:54]} 27. e5 {[%clk 0:02:21]}  f5 {[%clk 0:01:53]} 28. Nf1 {[%clk 0:02:22]}  Rb8 {[%clk 0:01:53]} 29. Re2 {[%clk 0:02:22]}  Nd5 {[%clk 0:01:53]} 30. g3 {[%clk 0:02:17]}  g5 {[%clk 0:01:52]} 31. Ne3 {[%clk 0:02:13]}  Nxe3 {[%clk 0:01:49]} 32. fxe3 {[%clk 0:02:14]}  Ke7 {[%clk 0:01:49]} 33. Kf2 {[%clk 0:02:12]}  Rb6 {[%clk 0:01:47]} 34. Rd2 {[%clk 0:02:11]}  a5 {[%clk 0:01:47]} 35. b3 {[%clk 0:02:11]}  cxb3 {[%clk 0:01:31]} 36. axb3 {[%clk 0:02:11]}  Rb8 {[%clk 0:01:24]} 37. Ra2 {[%clk 0:02:09]}  Rc8 {[%clk 0:01:23]} 38. Rxa5 {[%clk 0:02:00]}  Rxc3 {[%clk 0:01:23]} 39. Ra7 {[%clk 0:01:59]}  Rc1 {[%clk 0:01:20]} 40. b4 {[%clk 0:01:57]}  Rb1 {[%clk 0:01:17]} 41. Ke2 {[%clk 0:01:39]}  h5 {[%clk 0:01:09]} 42. Kd3 {[%clk 0:01:38]}  h4 {[%clk 0:01:07]} 43. gxh4 {[%clk 0:01:38]}  gxh4 {[%clk 0:01:06]} 44. b5 {[%clk 0:01:35]}  Kd8 {[%clk 0:01:05]} 45. Kc4 {[%clk 0:01:33]}  Kc8 {[%clk 0:01:02]} 46. Kc5 {[%clk 0:01:33]}  Rb2 {[%clk 0:00:53]} 47. b6 {[%clk 0:01:32]}  Rb1 {[%clk 0:00:48]} 48. Rc7+ {[%clk 0:01:05]}  Kd8 {[%clk 0:00:49]} 49. Nc6+ {[%clk 0:01:03]}  Bxc6 {[%clk 0:00:49]} 50. Kxc6 {[%clk 0:01:03]}  Rb3 {[%clk 0:00:44]} 51. Rh7 {[%clk 0:00:59]}  Rxe3 {[%clk 0:00:41]} 52. b7 {[%clk 0:00:58]}  Rc3+ {[%clk 0:00:42]} 53. Kd6 {[%clk 0:00:57]}  Rd3+ {[%clk 0:00:40]} 54. Kxe6 {[%clk 0:00:57]}  Rb3 {[%clk 0:00:38]} 55. Kxf5 {[%clk 0:00:55]} 1-0


[Site "https://www.chess.com"]

[Event "Titled Tuesday Blitz June 13 Early 2023"]
[White "Ilamparthi A R"]
[Black "Skawinski, Arkadiusz"]
[WhiteFideId "45015775"]
[BlackFideId "1126415"]
[WhiteElo "2348"]
[BlackElo "2218"]
[Result "1-0"]
[Round "4"]
[TimeControl "180+2"]
[Date "2023.06.13"]
[WhiteClock "0:00:16"]
[BlackClock "0:00:00"]
[Board "53"]

1. e4 {[%clk 0:03:00]}  e6 {[%clk 0:02:59]} 2. d3 {[%clk 0:02:57]}  d5 {[%clk 0:02:59]} 3. Nd2 {[%clk 0:02:48]}  Nf6 {[%clk 0:02:55]} 4. Ngf3 {[%clk 0:02:44]}  Nc6 {[%clk 0:02:53]} 5. c3 {[%clk 0:02:34]}  a5 {[%clk 0:02:51]} 6. e5 {[%clk 0:02:31]}  Nd7 {[%clk 0:02:51]} 7. d4 {[%clk 0:02:31]}  f6 {[%clk 0:02:51]} 8. Bb5 {[%clk 0:02:31]}  fxe5 {[%clk 0:02:50]} 9. Nxe5 {[%clk 0:02:27]}  Ncxe5 {[%clk 0:02:38]} 10. dxe5 {[%clk 0:02:28]}  c6 {[%clk 0:02:28]} 11. Bd3 {[%clk 0:02:26]}  Qh4 {[%clk 0:02:16]} 12. Nf3 {[%clk 0:02:00]}  Qh5 {[%clk 0:02:15]} 13. Bf4 {[%clk 0:01:53]}  Be7 {[%clk 0:02:11]} 14. Qd2 {[%clk 0:01:38]}  O-O {[%clk 0:02:05]} 15. Bg3 {[%clk 0:01:32]}  Nc5 {[%clk 0:01:48]} 16. O-O-O {[%clk 0:01:26]}  Bd7 {[%clk 0:01:42]} 17. Bc2 {[%clk 0:01:23]}  Rxf3 {[%clk 0:01:32]} 18. gxf3 {[%clk 0:01:22]}  Qxf3 {[%clk 0:01:32]} 19. Rhg1 {[%clk 0:01:18]}  Be8 {[%clk 0:01:21]} 20. Kb1 {[%clk 0:01:15]}  Bh5 {[%clk 0:01:11]} 21. Rde1 {[%clk 0:01:11]}  b5 {[%clk 0:01:04]} 22. Qd4 {[%clk 0:01:08]}  b4 {[%clk 0:00:53]} 23. Bh4 {[%clk 0:00:53]}  Bf8 {[%clk 0:00:44]} 24. Bf6 {[%clk 0:00:45]}  Bg6 {[%clk 0:00:32]} 25. Bxg6 {[%clk 0:00:29]}  hxg6 {[%clk 0:00:31]} 26. Bg5 {[%clk 0:00:23]}  Rb8 {[%clk 0:00:26]} 27. c4 {[%clk 0:00:23]}  Ne4 {[%clk 0:00:19]} 28. Be3 {[%clk 0:00:21]}  Bc5 {[%clk 0:00:18]} 29. Qd3 {[%clk 0:00:21]}  Bxe3 {[%clk 0:00:17]} 30. Rxe3 {[%clk 0:00:21]}  Qxf2 {[%clk 0:00:18]} 31. Rc1 {[%clk 0:00:21]}  Nd2+ {[%clk 0:00:13]} 32. Ka1 {[%clk 0:00:21]}  Nxc4 {[%clk 0:00:14]} 33. Re2 {[%clk 0:00:21]}  Qf4 {[%clk 0:00:12]} 34. Rec2 {[%clk 0:00:19]}  a4 {[%clk 0:00:12]} 35. Rf1 {[%clk 0:00:18]}  Qxe5 {[%clk 0:00:11]} 36. Qxg6 {[%clk 0:00:18]}  b3 {[%clk 0:00:08]} 37. Qf7+ {[%clk 0:00:17]}  Kh7 {[%clk 0:00:09]} 38. Rg2 {[%clk 0:00:17]}  bxa2 {[%clk 0:00:00]} 39. Rf3 {[%clk 0:00:16]} 1-0


[Site "https://www.chess.com"]

[Event "Titled Tuesday Blitz June 13 Early 2023"]
[White "Pinheiro, Iung Alicio de O."]
[Black "Atakhan, Abtin"]
[WhiteFideId "2104350"]
[BlackFideId "22502203"]
[WhiteElo "2283"]
[BlackElo "2008"]
[Result "0-1"]
[Round "4"]
[TimeControl "180+2"]
[Date "2023.06.13"]
[WhiteClock "0:00:00"]
[BlackClock "0:00:17"]
[Board "56"]

1. e4 {[%clk 0:03:00]}  c5 {[%clk 0:03:00]} 2. Nc3 {[%clk 0:02:58]}  Nc6 {[%clk 0:02:59]} 3. Bb5 {[%clk 0:02:58]}  Nd4 {[%clk 0:03:00]} 4. Bc4 {[%clk 0:02:51]}  e6 {[%clk 0:02:59]} 5. Nge2 {[%clk 0:02:50]}  a6 {[%clk 0:02:46]} 6. Nxd4 {[%clk 0:02:45]}  cxd4 {[%clk 0:02:46]} 7. Ne2 {[%clk 0:02:45]}  Nf6 {[%clk 0:02:44]} 8. d3 {[%clk 0:02:44]}  d5 {[%clk 0:02:41]} 9. exd5 {[%clk 0:02:45]}  b5 {[%clk 0:02:11]} 10. Bb3 {[%clk 0:02:41]}  e5 {[%clk 0:02:10]} 11. O-O {[%clk 0:02:19]}  Nxd5 {[%clk 0:01:49]} 12. f4 {[%clk 0:01:47]}  Bc5 {[%clk 0:01:38]} 13. fxe5 {[%clk 0:01:36]}  O-O {[%clk 0:01:38]} 14. Ng3 {[%clk 0:01:03]}  Bb7 {[%clk 0:01:30]} 15. Qg4 {[%clk 0:00:54]}  Qe7 {[%clk 0:00:56]} 16. Nf5 {[%clk 0:00:22]}  Qxe5 {[%clk 0:00:54]} 17. Bh6 {[%clk 0:00:16]}  Ne3 {[%clk 0:00:49]} 18. Qxg7+ {[%clk 0:00:11]}  Qxg7 {[%clk 0:00:48]} 19. Bxg7 {[%clk 0:00:11]}  Rfe8 {[%clk 0:00:42]} 20. Bxd4 {[%clk 0:00:09]}  Bxd4 {[%clk 0:00:39]} 21. Nxd4 {[%clk 0:00:10]}  Nxf1 {[%clk 0:00:40]} 22. Rxf1 {[%clk 0:00:10]}  Re7 {[%clk 0:00:38]} 23. Nf5 {[%clk 0:00:10]}  Rd7 {[%clk 0:00:38]} 24. Nh6+ {[%clk 0:00:10]}  Kg7 {[%clk 0:00:38]} 25. Nxf7 {[%clk 0:00:08]}  Re8 {[%clk 0:00:38]} 26. Ng5 {[%clk 0:00:08]}  Re2 {[%clk 0:00:38]} 27. Rf2 {[%clk 0:00:07]}  Rde7 {[%clk 0:00:38]} 28. Nf3 {[%clk 0:00:05]}  R2e3 {[%clk 0:00:34]} 29. h3 {[%clk 0:00:04]}  a5 {[%clk 0:00:34]} 30. a4 {[%clk 0:00:03]}  Bc6 {[%clk 0:00:34]} 31. axb5 {[%clk 0:00:03]}  Bxb5 {[%clk 0:00:35]} 32. Kh2 {[%clk 0:00:04]}  a4 {[%clk 0:00:35]} 33. Bd5 {[%clk 0:00:03]}  Rd7 {[%clk 0:00:29]} 34. Nd4 {[%clk 0:00:03]}  Rxd5 {[%clk 0:00:28]} 35. Nf5+ {[%clk 0:00:03]}  Rxf5 {[%clk 0:00:28]} 36. Rxf5 {[%clk 0:00:03]}  Bd7 {[%clk 0:00:27]} 37. Rd5 {[%clk 0:00:03]}  Be8 {[%clk 0:00:27]} 38. Rd4 {[%clk 0:00:02]}  Kf6 {[%clk 0:00:22]} 39. c4 {[%clk 0:00:01]}  Re2 {[%clk 0:00:18]} 40. Rd6+ {[%clk 0:00:00]}  Ke7 {[%clk 0:00:17]} 0-1


[Site "https://www.chess.com"]

[Event "Titled Tuesday Blitz June 13 Early 2023"]
[White "Maximov, Dmitry"]
[Black "Parondo, Rolly"]
[WhiteFideId "14105659"]
[BlackFideId "5217407"]
[WhiteElo "2494"]
[BlackElo "2141"]
[Result "1-0"]
[Round "4"]
[TimeControl "180+2"]
[Date "2023.06.13"]
[WhiteClock "0:02:05"]
[BlackClock "0:01:36"]
[Board "58"]

1. e4 {[%clk 0:03:00]}  c5 {[%clk 0:02:59]} 2. Nf3 {[%clk 0:03:01]}  g6 {[%clk 0:02:57]} 3. c3 {[%clk 0:03:01]}  Bg7 {[%clk 0:02:57]} 4. d4 {[%clk 0:03:01]}  cxd4 {[%clk 0:02:58]} 5. cxd4 {[%clk 0:03:01]}  d5 {[%clk 0:02:59]} 6. e5 {[%clk 0:03:02]}  Bg4 {[%clk 0:02:58]} 7. Bb5+ {[%clk 0:03:00]}  Nd7 {[%clk 0:02:55]} 8. O-O {[%clk 0:02:52]}  e6 {[%clk 0:02:49]} 9. Nbd2 {[%clk 0:02:50]}  Ne7 {[%clk 0:02:43]} 10. h3 {[%clk 0:02:46]}  Bxf3 {[%clk 0:02:43]} 11. Nxf3 {[%clk 0:02:46]}  h6 {[%clk 0:02:39]} 12. Bd3 {[%clk 0:02:35]}  Rc8 {[%clk 0:02:34]} 13. Be3 {[%clk 0:02:34]}  O-O {[%clk 0:02:33]} 14. Qd2 {[%clk 0:02:33]}  Kh7 {[%clk 0:02:32]} 15. h4 {[%clk 0:02:33]}  Nf5 {[%clk 0:02:28]} 16. h5 {[%clk 0:02:33]}  Nb8 {[%clk 0:02:08]} 17. Kh2 {[%clk 0:02:19]}  Nc6 {[%clk 0:02:07]} 18. hxg6+ {[%clk 0:02:18]}  fxg6 {[%clk 0:02:07]} 19. Rh1 {[%clk 0:02:18]}  Ncxd4 {[%clk 0:01:54]} 20. Nxd4 {[%clk 0:02:06]}  Nxd4 {[%clk 0:01:36]} 21. Bxd4 {[%clk 0:02:05]} 1-0


[Site "https://www.chess.com"]

[Event "Titled Tuesday Blitz June 13 Early 2023"]
[White "Arat, Ufuk Sezen"]
[Black "Aradhya, Garg"]
[WhiteFideId "6309089"]
[BlackFideId "25006746"]
[WhiteElo "2289"]
[BlackElo "2263"]
[Result "1-0"]
[Round "4"]
[TimeControl "180+2"]
[Date "2023.06.13"]
[WhiteClock "0:00:19"]
[BlackClock "0:00:04"]
[Board "59"]

1. e4 {[%clk 0:03:00]}  e5 {[%clk 0:02:58]} 2. Nf3 {[%clk 0:03:00]}  Nc6 {[%clk 0:02:59]} 3. Bb5 {[%clk 0:02:59]}  a6 {[%clk 0:02:59]} 4. Ba4 {[%clk 0:02:59]}  Bc5 {[%clk 0:03:00]} 5. O-O {[%clk 0:02:58]}  d6 {[%clk 0:03:00]} 6. c3 {[%clk 0:02:58]}  Bd7 {[%clk 0:03:00]} 7. d4 {[%clk 0:02:57]}  Ba7 {[%clk 0:03:01]} 8. Bg5 {[%clk 0:02:55]}  Nf6 {[%clk 0:03:01]} 9. Re1 {[%clk 0:02:46]}  h6 {[%clk 0:03:00]} 10. Be3 {[%clk 0:02:44]}  O-O {[%clk 0:02:58]} 11. Nbd2 {[%clk 0:02:43]}  Re8 {[%clk 0:02:56]} 12. d5 {[%clk 0:02:42]}  Ne7 {[%clk 0:02:55]} 13. Bxa7 {[%clk 0:02:43]}  Rxa7 {[%clk 0:02:55]} 14. Bc2 {[%clk 0:02:42]}  Ng6 {[%clk 0:02:30]} 15. Nf1 {[%clk 0:02:39]}  Nf4 {[%clk 0:02:29]} 16. Ng3 {[%clk 0:02:33]}  a5 {[%clk 0:02:25]} 17. Ne2 {[%clk 0:02:32]}  N6h5 {[%clk 0:02:22]} 18. Nxf4 {[%clk 0:02:12]}  Nxf4 {[%clk 0:02:23]} 19. g3 {[%clk 0:02:13]}  Ng6 {[%clk 0:02:09]} 20. Bd3 {[%clk 0:02:04]}  Qf6 {[%clk 0:02:09]} 21. Bf1 {[%clk 0:01:58]}  a4 {[%clk 0:02:02]} 22. a3 {[%clk 0:01:57]}  c6 {[%clk 0:02:00]} 23. c4 {[%clk 0:01:57]}  c5 {[%clk 0:02:01]} 24. h4 {[%clk 0:01:52]}  Bg4 {[%clk 0:01:33]} 25. Be2 {[%clk 0:01:50]}  Bxf3 {[%clk 0:01:31]} 26. Bxf3 {[%clk 0:01:50]}  Rb8 {[%clk 0:01:32]} 27. h5 {[%clk 0:01:49]}  Nf8 {[%clk 0:01:31]} 28. b4 {[%clk 0:01:48]}  axb3 {[%clk 0:01:29]} 29. Qxb3 {[%clk 0:01:48]}  g6 {[%clk 0:01:12]} 30. hxg6 {[%clk 0:01:47]}  fxg6 {[%clk 0:01:13]} 31. Bg2 {[%clk 0:01:45]}  b6 {[%clk 0:01:13]} 32. Re3 {[%clk 0:01:44]}  h5 {[%clk 0:01:12]} 33. Bh3 {[%clk 0:01:40]}  Rf7 {[%clk 0:01:09]} 34. Rf1 {[%clk 0:01:36]}  h4 {[%clk 0:01:09]} 35. Qd1 {[%clk 0:01:22]}  b5 {[%clk 0:01:04]} 36. cxb5 {[%clk 0:01:21]}  Rxb5 {[%clk 0:01:04]} 37. Qg4 {[%clk 0:01:20]}  Rb2 {[%clk 0:00:58]} 38. Re2 {[%clk 0:00:55]}  Rb3 {[%clk 0:00:53]} 39. Re3 {[%clk 0:00:55]}  Rb2 {[%clk 0:00:37]} 40. Re2 {[%clk 0:00:55]}  Rxe2 {[%clk 0:00:37]} 41. Qxe2 {[%clk 0:00:55]}  hxg3 {[%clk 0:00:38]} 42. fxg3 {[%clk 0:00:55]}  Qg5 {[%clk 0:00:39]} 43. Kg2 {[%clk 0:00:33]}  Rxf1 {[%clk 0:00:35]} 44. Qxf1 {[%clk 0:00:33]}  Qd2+ {[%clk 0:00:22]} 45. Kh1 {[%clk 0:00:32]}  Qe3 {[%clk 0:00:20]} 46. Be6+ {[%clk 0:00:31]}  Nxe6 {[%clk 0:00:17]} 47. dxe6 {[%clk 0:00:31]}  Qh6+ {[%clk 0:00:17]} 48. Kg2 {[%clk 0:00:27]}  Qd2+ {[%clk 0:00:17]} 49. Qf2 {[%clk 0:00:24]}  Qh6 {[%clk 0:00:04]} 50. e7 {[%clk 0:00:17]}  Kh7 {[%clk 0:00:02]} 51. Qf7+ {[%clk 0:00:16]}  Qg7 {[%clk 0:00:02]} 52. Qxg7+ {[%clk 0:00:16]}  Kxg7 {[%clk 0:00:03]} 53. e8=Q {[%clk 0:00:17]}  Kh6 {[%clk 0:00:03]} 54. Kh3 {[%clk 0:00:15]}  Kg5 {[%clk 0:00:04]} 55. Qe7+ {[%clk 0:00:16]}  Kh6 {[%clk 0:00:04]} 56. Kg4 {[%clk 0:00:16]}  c4 {[%clk 0:00:03]} 57. Qf8+ {[%clk 0:00:17]}  Kh7 {[%clk 0:00:03]} 58. Kg5 {[%clk 0:00:17]}  c3 {[%clk 0:00:04]} 59. Kf6 {[%clk 0:00:18]}  c2 {[%clk 0:00:04]} 60. Qg7# {[%clk 0:00:19]} 1-0


[Site "https://www.chess.com"]